bitfinex/quotes_ETHUSD_20260228
["timestamp","ask_amount","ask_price","bid_price","bid_amount"]
[1772310534306,1.27356087,1963.0,1962.5,0.001]
[1772310534504,3.23120707,1963.0,1962.5,0.001]
[1772310535210,1.408,1962.9,1962.5,0.001]
[1772310535412,3.3656462,1962.9,1962.5,0.001]
[1772310535989,1.9576462,1962.8,1962.3,0.001]
[1772310536190,1.409,1962.7,1962.3,0.001]
[1772310536735,3.09241334,1962.6,1962.1,0.001]
[1772310537020,5.05005954,1962.6,1962.1,0.001]
[1772310537316,5.05005954,1962.6,1961.7,1.89247297]
[1772310537317,1.409,1962.5,1961.7,1.89247297]
[1772310537918,1.27382044,1962.6,1961.7,1.89247297]
[1772310538220,7.05292796,1962.7,1961.7,1.89247297]
[1772310538221,1.41,1962.7,1961.8,1.89247297]
[1772310538527,1.27369064,1962.8,1962.0,1.89247297]
[1772310539198,1.273496,1963.1,1962.0,1.89247297]
[1772310539390,1.273496,1963.1,1962.2,1.89247297]
[1772310539596,1.409,1963.0,1962.2,1.89247297]
[1772310540724,1.409,1963.0,1962.3,1.89247297]
[1772310541091,1.409,1962.9,1962.3,1.89247297]
[1772310541920,1.27345555,1963.2,1962.3,1.89247297]
[1772310542121,1.408,1962.9,1962.3,1.89247297]
[1772310542626,1.27369064,1962.8,1962.1,2.51967183]
[1772310542827,1.8185929,1962.7,1962.0,1.89247297]
[1772310543037,1.8185929,1962.7,1961.7,3.16683002]
[1772310543339,3.7762391,1962.7,1961.7,3.16683002]
[1772310544151,1.9576462,1962.6,1961.7,1.89247297]
[1772310544365,1.408,1962.5,1961.7,1.89247297]
[1772310544647,1.408,1962.5,1961.8,1.89247297]
[1772310545020,1.27395026,1962.4,1961.8,3.16679274]
[1772310545224,1.408,1962.3,1961.5,7.19083088]
[1772310545919,1.408,1962.3,1961.5,5.91634311]
[1772310546305,1.27395026,1962.4,1961.6,1.89247297]
[1772310546509,2.68195026,1962.4,1961.6,1.89247297]
[1772310547605,1.9576462,1962.3,1961.5,1.75556714]
[1772310547859,2.57946652,1962.0,1961.0,1.89247297]
[1772310548140,1.8185929,1961.3,1960.9,1e-08]
[1772310548314,0.76058894,1961.8,1960.9,1.89247298]
[1772310548512,3.2265929,1961.7,1960.9,1.89247298]
[1772310548714,0.76058894,1961.6,1960.9,1e-08]
[1772310548931,1.8185929,1961.4,1960.9,1e-08]
[1772310549135,1.27466476,1961.3,1960.6,1.89247297]
[1772310549344,1.407,1961.2,1960.6,1.89247297]
[1772310549654,1.8185929,1961.1,1960.3,1.89247297]
[1772310549830,1.407,1961.1,1960.3,1.89247297]
[1772310551131,1.407,1961.1,1960.5,1.89247297]
[1772310551325,2.68179764,1961.1,1960.5,1.89247297]
[1772310551948,1.407,1961.1,1960.5,1.89247297]
[1772310552150,5.09868813,1961.3,1960.6,1.89247297]
[1772310552151,1.407,1961.3,1960.6,1.89247297]
[1772310552533,1.27458261,1961.5,1960.6,1.89247297]
[1772310552735,1.407,1961.3,1960.6,1.89247297]
[1772310552953,1.8185929,1961.7,1960.3,1.27527457]
[1772310552954,6.50383995,1962.1,1960.8,1.89247297]
[1772310553184,6.50383995,1962.1,1960.9,1.89247297]
[1772310553452,6.50383995,1962.1,1961.1,1.89247297]
[1772310553453,1.407,1962.1,1961.1,1.89247297]
[1772310553822,1.27401518,1962.3,1961.4,1.89247297]
[1772310554022,1.27398923,1962.4,1961.4,1.89247297]
[1772310555251,1.27398923,1962.4,1961.6,1.89247297]
[1772310557349,1.27398923,1962.4,1961.7,3.23056703]
[1772310558158,1.27585401,1962.6,1961.8,1.95616218]
[1772310558358,2.68285401,1962.6,1961.8,1.95616218]
[1772310558928,2.68285401,1962.6,1961.6,1.27442799]
[1772310559133,2.68285401,1962.6,1961.5,1.95616218]
[1772310559134,1.8185929,1962.4,1961.5,1.95616218]
[1772310559350,1.27401518,1962.3,1961.5,1.95616218]
[1772310559555,1.27388535,1962.5,1961.6,1.95616218]
[1772310559865,1.27586061,1962.6,1961.6,3.77475508]
[1772310560031,1.27582783,1962.6,1961.7,1.95616218]
[1772310560871,1.27582783,1962.6,1961.4,1.27459977]
[1772310560872,3.74234181,1962.4,1961.4,1.27459977]
[1772310561028,6.42416964,1962.6,1961.5,1.95616218]
[1772310561230,6.42416964,1962.6,1961.6,1.27446982]
[1772310561429,2.68182783,1962.6,1961.7,1.95616218]
[1772310561659,1.27582783,1962.6,1961.7,1.95616218]
[1772310562234,1.27582783,1962.6,1961.9,1.95616218]
[1772310562958,1.27582783,1962.6,1961.8,0.001]
[1772310562959,5.01816964,1962.6,1961.8,0.001]
[1772310563568,1.8185929,1962.3,1961.8,0.001]
[1772310563766,1.406,1962.2,1961.8,0.001]
[1772310564289,1.406,1962.2,1961.3,1.95616218]
[1772310564290,1.8185929,1962.0,1961.3,1.95616218]
[1772310564458,1.406,1961.9,1961.3,3.23081847]
[1772310564939,3.09442073,1962.6,1961.4,1.95616218]
[1772310565140,3.09442073,1962.6,1961.5,1.95616218]
[1772310565141,1.406,1962.3,1961.5,1.95616218]
[1772310565340,1.27408011,1962.2,1961.5,3.23063785]
[1772310565760,1.27408011,1962.2,1961.5,3.23069539]
[1772310565964,1.27408011,1962.2,1961.5,3.2306918]
[1772310566170,2.68005679,1962.3,1961.6,1.95616218]
[1772310566460,1.27401633,1962.3,1961.6,1.95616218]
[1772310566670,2.68001633,1962.3,1961.6,1.95616218]
[1772310567066,1.406,1962.3,1961.6,1.95616218]
[1772310568562,1.27408011,1962.2,1961.7,1.95616218]
[1772310568878,1.405,1962.4,1961.7,1.95616218]
[1772310569453,1.27585817,1962.6,1961.7,1.95616218]
[1772310569680,1.405,1962.5,1961.7,1.95616218]
[1772310570285,47.04243946,1961.9,1961.8,1.95616218]
[1772310570580,34.44119246,1961.9,1961.8,3.23050207]
[1772310570787,27.67613346,1961.9,1961.8,3.23050207]
[1772310571080,1.27582652,1962.6,1961.8,3.23050207]
[1772310571480,1.27582652,1962.6,1961.6,1.403]
[1772310571658,1.92374891,1962.5,1961.6,2.67746898]
[1772310572576,1.27395026,1962.4,1961.7,1.95616218]
[1772310572882,1.27395026,1962.4,1961.6,1.403]
[1772310572883,3.19769917,1962.4,1961.6,1.403]
[1772310573252,3.19769917,1962.4,1961.6,2.67745616]
[1772310573483,2.68192397,1962.5,1961.7,1.95616218]
[1772310573885,1.27392397,1962.5,1961.7,1.95616218]
[1772310574558,1.27392397,1962.5,1961.8,3.23050207]
[1772310574778,2.68385995,1962.6,1961.8,3.23050207]
[1772310574952,0.002,1962.6,1961.9,1.95616218]
[1772310575158,0.002,1962.3,1961.9,1.95616218]
[1772310575378,0.002,1962.6,1961.9,1.95616218]
[1772310575781,0.002,1962.4,1961.9,1.95616218]
[1772310576485,0.002,1962.4,1962.0,1.27420998]
[1772310576666,0.002,1962.4,1962.1,1.95616218]
[1772310578450,0.002,1962.4,1962.0,1.27420998]
[1772310578684,0.002,1962.4,1961.9,3.36216218]
[1772310578888,0.002,1962.4,1962.0,1.95616218]
[1772310580685,0.002,1962.4,1962.0,3.23034299]
[1772310582784,0.002,1962.4,1961.8,1.27430951]
[1772310583173,0.002,1962.4,1962.0,1.95616218]
[1772310584559,0.002,1962.4,1962.0,1.27420998]
[1772310585078,0.002,1962.4,1961.9,1.409]
[1772310585275,0.002,1962.4,1961.9,2.68326702]
[1772310586794,2.55140227,1962.4,1961.4,5.18656522]
[1772310588062,2.55140227,1962.6,1961.9,4.31959183]
[1772310588267,0.002,1962.3,1961.9,2.50099893]
[1772310588478,0.002,1962.3,1961.7,2.50199893]
[1772310588679,0.002,1962.3,1961.8,1.27433989]
[1772310589084,2.55140227,1962.3,1961.7,0.001]
[1772310589395,2.55140227,1962.3,1961.7,1.27539631]
[1772310590669,2.55140227,1962.3,1961.7,0.001]
[1772310590670,3.82348238,1962.2,1961.7,0.001]
[1772310591189,5.09811506,1962.3,1961.7,2.50199893]
[1772310591190,0.002,1962.3,1961.7,2.50199893]
[1772310591866,1.27601793,1962.3,1961.7,2.50199893]
[1772310592066,3.8254202,1962.3,1961.7,0.001]
[1772310594699,2.54940227,1962.2,1961.7,0.001]
[1772310594867,3.82354731,1962.1,1961.7,0.001]
[1772310595781,3.82354731,1962.1,1961.5,0.001]
[1772310595782,2.54940227,1961.9,1961.5,0.001]
[1772310596105,2.54940227,1961.9,1960.9,3.77592222]
[1772310596607,2.54940227,1961.9,1960.9,2.50099893]
[1772310596902,2.54940227,1961.7,1960.6,7.60142306]
[1772310597106,2.54940227,1961.7,1960.7,2.50099893]
[1772310597803,3.95140227,1961.7,1960.7,2.50099893]
[1772310598300,2.54940227,1961.6,1960.7,2.50099893]
[1772310598524,2.54940227,1961.9,1960.9,2.50099893]
[1772310598680,1.27417438,1962.1,1961.2,2.50099893]
[1772310599002,1.27417438,1962.1,1961.3,3.77566369]
[1772310599211,2.54940227,1962.0,1961.3,3.77566369]
[1772310599578,2.54940227,1962.0,1961.3,1.27466476]
[1772310600116,3.82545076,1962.3,1961.4,2.50099893]
[1772310600278,3.82545076,1962.3,1961.4,3.91099893]
[1772310600695,3.82545076,1962.3,1961.4,3.91199893]
[1772310601007,3.82354731,1962.1,1961.4,3.77655951]
[1772310601207,2.54940227,1962.0,1961.4,1.27559249]
[1772310601409,3.82352646,1962.2,1961.5,2.50099893]
[1772310601612,3.82348313,1962.2,1961.4,1.27559249]
[1772310601835,2.54940227,1962.1,1961.4,0.001]
[1772310601992,2.54940227,1962.0,1961.4,1.27559725]
[1772310602193,2.54940227,1962.0,1961.4,0.001]
[1772310602599,1.27408086,1962.2,1961.4,1.27559389]
[1772310602799,0.002,1962.3,1961.5,2.50099893]
[1772310603011,0.002,1962.3,1961.6,3.77546875]
[1772310603220,0.002,1962.3,1961.7,2.50099893]
[1772310603785,2.55140227,1962.3,1961.6,1.409]
[1772310604722,2.55140227,1962.3,1961.4,1.2755849]
[1772310604723,2.54940227,1962.2,1961.4,1.2755849]
[1772310605311,2.54940227,1962.0,1961.4,0.001]
[1772310606399,1.27414504,1962.1,1961.4,0.001]
[1772310606710,3.82354731,1962.1,1961.4,0.001]
[1772310606908,2.54940227,1962.0,1961.4,0.001]
[1772310607294,2.54940227,1961.8,1961.4,0.001]
[1772310607694,2.54940227,1961.8,1960.8,5.09994731]
[1772310607695,2.54940227,1961.5,1960.3,2.50099893]
[1772310607897,2.54940227,1961.5,1960.3,3.77630967]
[1772310608601,2.54940227,1961.3,1960.3,3.77630967]
[1772310609522,1.27472975,1961.2,1960.3,3.77630967]
[1772310609692,2.67472975,1961.2,1960.3,3.77630967]
[1772310610123,2.54940227,1961.1,1960.3,2.50099893]
[1772310610335,2.54940227,1961.0,1960.0,2.50099893]
[1772310611422,3.82432704,1960.9,1960.0,2.50099893]
[1772310611728,2.54940227,1960.8,1959.9,2.50099893]
[1772310611915,3.94940227,1960.8,1959.9,2.50099893]
[1772310612116,2.54940227,1960.7,1959.8,4.29873622]
[1772310612496,3.94940227,1960.7,1959.8,4.29873622]
[1772310612696,2.54940227,1960.6,1959.8,6.79973515]
[1772310612927,1.4,1961.2,1960.4,2.50099893]
[1772310613222,3.94940227,1961.9,1960.4,2.50099893]
[1772310613434,1.27440485,1961.7,1960.8,1.2749898]
[1772310613592,3.82380712,1961.7,1960.8,1.2749898]
[1772310614097,1.27431666,1961.9,1960.9,2.50099893]
[1772310614295,2.54748367,1962.1,1960.9,2.50099893]
[1772310614296,1.27419057,1962.1,1960.9,2.50099893]
[1772310614498,2.54940227,1962.0,1960.9,2.50099893]
[1772310615027,3.82359284,1962.1,1960.9,2.50099893]
[1772310615532,2.54940227,1961.8,1960.9,1.27490606]
[1772310615698,3.94940227,1961.8,1960.9,1.27490606]
[1772310617208,0.002,1962.2,1960.9,1.27490606]
[1772310617209,0.002,1962.2,1961.2,2.523558]
[1772310617497,0.002,1962.2,1961.5,1.27453479]
[1772310618217,0.002,1962.2,1961.5,3.79809279]
[1772310618627,0.002,1962.2,1961.6,2.523558]
[1772310619500,0.002,1962.2,1961.6,3.79797778]
[1772310619929,0.002,1962.2,1961.7,2.523558]
[1772310621605,0.002,1962.2,1961.8,1.27433989]
[1772310621805,0.002,1962.2,1961.7,3.79791835]
[1772310622203,0.002,1962.2,1961.7,1.27436035]
[1772310622417,0.002,1962.2,1961.4,3.79812838]
[1772310623213,2.59896859,1962.2,1961.1,3.79831128]
[1772310623410,2.59896859,1962.2,1961.0,2.68381828]
[1772310623632,2.59696859,1962.0,1961.0,2.68381828]
[1772310623828,1.395,1962.0,1961.0,2.68381828]
[1772310624022,2.59696859,1961.9,1961.0,2.68381828]
[1772310624809,2.59696859,1961.9,1961.0,1.409]
[1772310625108,2.59696859,1961.9,1960.8,3.79850954]
[1772310625830,2.66927493,1962.1,1960.9,2.523558]
[1772310626225,2.59696859,1962.0,1960.9,2.523558]
[1772310626802,2.59696859,1962.0,1960.9,2.524558]
[1772310627205,0.002,1962.1,1961.2,5.07104167]
[1772310627404,0.002,1962.1,1961.3,2.523558]
[1772310628037,0.002,1962.1,1961.4,1.27459977]
[1772310628837,0.002,1962.1,1961.5,2.523558]
[1772310630042,0.002,1962.1,1961.6,1.27446982]
[1772310630247,0.002,1962.1,1961.5,3.79804634]
[1772310631120,2.54748367,1961.8,1960.9,2.524558]
[1772310631440,2.59696859,1961.4,1960.6,1.27610002]
[1772310631653,2.59696859,1961.4,1960.6,0.001]
[1772310632022,2.59696859,1961.1,1960.1,0.001]
[1772310632221,1.27464845,1961.4,1960.4,2.523558]
[1772310633613,1.393,1961.3,1960.4,2.523558]
[1772310634123,1.27472975,1961.2,1960.5,1.2751849]
[1772310634319,2.66753479,1961.5,1960.6,2.523558]
[1772310635836,2.66753479,1961.5,1960.7,2.523558]
[1772310636234,2.59696859,1961.9,1960.9,2.523558]
[1772310636435,1.27433989,1961.8,1960.9,2.523558]
[1772310636867,2.66633989,1961.8,1960.9,2.523558]
[1772310637144,2.59696859,1961.7,1960.5,3.7986927]
[1772310637349,2.59696859,1961.7,1960.6,2.523558]
[1772310637750,1.392,1961.6,1960.6,2.523558]
[1772310638444,2.66651537,1961.6,1960.8,2.523558]
[1772310638613,2.66651537,1961.6,1960.6,5.1002193]
[1772310638817,2.59696859,1961.5,1960.5,2.523558]
[1772310639057,1.27427493,1961.9,1961.0,2.523558]
[1772310639233,1.27427493,1961.9,1961.1,2.523558]
[1772310640345,7.69389614,1962.0,1961.2,1.27472975]
[1772310640747,7.69389614,1962.0,1961.0,1.408]
[1772310640748,2.59696859,1961.9,1960.9,1.27492477]
[1772310640951,2.59696859,1961.9,1960.7,7.62376322]
[1772310640952,0.002,1961.6,1960.7,7.62376322]
[1772310641731,2.59896859,1961.6,1960.6,1.2750686]
[1772310642233,1.27453479,1961.5,1960.6,3.7986266]
[1772310642547,2.66553479,1961.5,1960.7,2.523558]
[1772310644146,7.69710776,1961.6,1961.0,2.68006325]
[1772310644147,0.002,1961.6,1961.0,2.68006325]
[1772310644329,0.002,1961.6,1961.2,1.27472975]
[1772310644732,0.002,1961.7,1961.3,2.68006325]
[1772310645141,0.002,1961.7,1961.2,1.27472975]
[1772310646730,0.002,1961.7,1961.3,2.57878813]
[1772310646951,0.002,1961.7,1961.4,2.57878813]
[1772310647330,0.002,1961.7,1960.7,1.41]
[1772310647741,0.002,1961.7,1960.7,3.98878813]
[1772310648155,0.002,1961.7,1960.8,2.57878813]
[1772310649058,1.27640485,1961.7,1960.9,3.8537129]
[1772310649260,1.27640485,1961.7,1960.9,1.27492477]
[1772310649956,1.27640485,1961.7,1960.9,3.8537129]
[1772310651133,0.002,1961.7,1960.9,3.8537129]
[1772310652542,0.002,1961.7,1961.0,2.57878813]
[1772310653360,0.002,1961.7,1961.0,3.85361671]
[1772310653560,2.63081974,1961.7,1960.9,0.002]
[1772310653773,2.62881974,1961.5,1960.9,0.002]
[1772310654661,4.01481974,1961.5,1960.9,0.002]
[1772310654865,0.002,1961.7,1961.0,2.57878813]
[1772310655659,0.002,1961.7,1961.1,1.27479475]
[1772310656362,0.002,1961.6,1961.1,1.27479475]
[1772310657239,0.002,1961.6,1961.0,2.57878813]
[1772310657635,4.44958001,1961.5,1960.9,0.003]
[1772310657838,2.62881974,1961.5,1960.9,1.27791395]
[1772310658367,1.27646982,1961.6,1960.9,1.27791395]
[1772310658748,1.27646982,1961.6,1960.9,0.003]
[1772310659571,1.27646982,1961.6,1961.0,2.57878813]
[1772310659572,0.002,1961.6,1961.0,2.57878813]
[1772310659766,0.002,1961.6,1961.1,1.27479475]
[1772310661170,0.002,1961.6,1961.0,2.57878813]
[1772310661343,2.62881974,1961.5,1960.9,0.003]
[1772310661745,1.27459977,1961.4,1960.9,0.003]
[1772310661969,3.90341951,1961.4,1960.9,0.003]
[1772310662149,1.27648529,1961.6,1960.9,2.58178813]
[1772310662340,1.27647624,1961.6,1960.9,2.58178813]
[1772310662542,0.002,1961.6,1960.9,2.58178813]
[1772310662743,1.27647008,1961.6,1960.9,2.58178813]
[1772310663048,0.002,1961.6,1960.9,2.58178813]
[1772310663876,0.002,1961.6,1961.0,3.85364789]
[1772310664241,0.002,1961.6,1961.0,3.70364789]
[1772310664982,2.63081974,1961.6,1960.9,0.003]
[1772310665748,1.27647067,1961.6,1960.9,2.58178813]
[1772310665970,1.27648872,1961.6,1960.9,2.58178813]
[1772310666284,3.90530846,1961.6,1960.9,0.003]
[1772310666570,4.44958001,1961.5,1960.9,0.003]
[1772310667747,2.62881974,1961.2,1960.8,0.001]
[1772310667951,4.44958001,1961.1,1960.5,0.001]
[1772310668152,4.44958001,1961.1,1960.5,1.27617385]
[1772310668349,4.44958001,1961.1,1960.5,0.001]
[1772310668765,3.90335453,1961.5,1960.6,2.57878813]
[1772310668972,5.28735453,1961.5,1960.6,2.57878813]
[1772310669781,0.002,1961.6,1961.0,2.57878813]
[1772310670681,0.002,1961.5,1961.0,2.57978813]
[1772310670884,0.002,1961.5,1961.0,0.001]
[1772310672668,0.002,1961.5,1961.0,2.57978813]
[1772310673161,5.359,1962.5,1961.5,2.57878813]
[1772310673361,0.002,1962.6,1961.8,2.57878813]
[1772310673960,0.002,1962.6,1961.9,1.27427493]
[1772310675088,0.002,1962.6,1961.4,6.91893455]
[1772310675089,2.62881974,1962.5,1961.4,2.57878813]
[1772310675464,4.00981974,1962.5,1961.4,2.57878813]
[1772310675668,2.62881974,1962.5,1961.4,2.57878813]
[1772310675888,3.90274984,1962.5,1961.4,2.57878813]
[1772310676189,3.90274984,1962.5,1961.6,2.57878813]
[1772310677366,2.62881974,1962.5,1961.6,2.57878813]
[1772310677562,1.27582477,1962.6,1961.7,2.64476608]
[1772310677763,0.002,1962.6,1961.8,2.64476608]
[1772310677959,0.002,1962.6,1961.8,3.91905456]
[1772310678658,2.52778874,1962.6,1961.8,2.64476608]
[1772310678862,0.002,1962.6,1961.8,2.64476608]
[1772310679960,0.002,1962.6,1962.0,2.64476608]
[1772310680364,0.002,1962.7,1962.1,2.64476608]
[1772310680768,0.002,1962.7,1962.4,2.64476608]
[1772310681270,0.002,1962.7,1962.4,1.407]
[1772310681576,0.002,1962.7,1962.5,2.64476608]
[1772310682091,0.002,1962.8,1962.7,2.64476608]
[1772310683200,0.002,1962.9,1962.8,2.64476608]
[1772310683404,0.002,1962.9,1962.8,4.05376608]
[1772310683771,0.002,1962.9,1962.8,2.64476608]
[1772310683971,0.002,1963.3,1962.9,2.64476608]
[1772310684682,0.002,1963.3,1962.9,1.411]
[1772310684871,0.002,1963.3,1963.0,2.64476608]
[1772310685266,0.002,1963.3,1962.6,5.09476258]
[1772310685267,2.52778874,1963.3,1962.5,1.27384742]
[1772310685494,4.34654901,1963.2,1962.2,7.74086434]
[1772310685710,0.002,1963.0,1962.2,7.74086434]
[1772310686391,0.002,1963.0,1962.3,2.64476608]
[1772310687688,1.82076027,1962.9,1962.0,2.64476608]
[1772310687878,2.52778874,1963.0,1961.9,2.64476608]
[1772310687879,2.52578874,1962.8,1961.9,2.64476608]
[1772310688079,0.002,1963.0,1962.1,2.64476608]
[1772310689669,1.27539634,1963.3,1962.3,2.64476608]
[1772310689872,1.27539634,1963.3,1962.5,2.64476608]
[1772310690068,0.002,1963.3,1962.6,1.27382044]
[1772310691111,4.34654901,1963.2,1962.3,1.411]
[1772310691309,2.52578874,1963.1,1962.3,1.411]
[1772310692100,1.27356087,1963.0,1962.4,1.27395026]
[1772310692600,1.27356087,1963.0,1962.3,2.6849762]
[1772310693201,3.79932368,1963.1,1962.3,2.6849762]
[1772310693874,3.79932368,1963.1,1962.3,5.32974228]
[1772310694706,1.82076027,1962.9,1961.8,5.09728708]
[1772310694914,2.52578874,1962.8,1961.8,3.91910597]
[1772310695073,2.52578874,1962.8,1961.9,2.64476608]
[1772310695273,2.52578874,1962.8,1962.0,2.64476608]
[1772310695483,5.17032368,1963.1,1962.0,2.64476608]
[1772310696324,2.52578874,1963.0,1962.0,2.64476608]
[1772310696470,2.52578874,1963.0,1961.9,2.68527439]
[1772310696674,2.52578874,1962.6,1961.5,1.27450461]
[1772310696934,2.52578874,1962.3,1961.4,5.33032842]
[1772310698381,1.27405234,1962.3,1961.5,2.64476608]
[1772310699778,2.52578874,1962.2,1961.4,1.27456234]
[1772310699977,1.27405234,1962.3,1961.4,1.27456234]
[1772310699978,5.62060135,1962.3,1961.4,2.64476608]
[1772310700202,3.79984108,1962.3,1961.4,3.91935963]
[1772310700772,2.52578874,1962.3,1961.4,3.91935963]
[1772310700975,3.7998185,1962.3,1961.5,2.64476608]
[1772310701204,1.82076027,1962.6,1961.5,2.64476608]
[1772310701405,1.27391443,1962.5,1961.5,2.64476608]
[1772310701880,3.79970317,1962.5,1961.5,2.64476608]
[1772310702777,3.79970317,1962.5,1961.6,1.27446982]
[1772310702976,3.79970317,1962.5,1961.6,3.9192359]
[1772310703177,3.79970317,1962.5,1961.6,5.3302359]
[1772310703419,1.27378474,1962.7,1961.7,2.64476608]
[1772310703784,2.52578874,1962.8,1961.8,2.64476608]
[1772310704277,1.27560749,1963.0,1961.8,2.64476608]
[1772310704473,1.27560749,1963.0,1962.0,2.4361058]
[1772310704677,1.27560749,1963.0,1962.2,1.27408011]
[1772310705219,0.002,1963.0,1962.4,2.49008922]
[1772310705508,0.002,1963.0,1962.4,4.92619502]
[1772310705806,0.002,1963.0,1962.5,2.4361058]
[1772310706284,0.002,1963.0,1962.5,3.8471058]
[1772310707005,0.002,1963.0,1962.6,1.27382044]
[1772310707174,0.002,1963.1,1962.7,2.48714653]
[1772310707375,0.002,1963.6,1962.7,2.48714653]
[1772310707698,0.002,1963.6,1963.0,2.48714653]
[1772310707886,0.002,1963.6,1963.3,2.48714653]
[1772310708721,0.002,1964.1,1963.3,2.48714653]
[1772310709021,0.002,1964.1,1963.2,1.82076027]
[1772310709022,0.002,1964.1,1963.8,4.3079068]
[1772310709225,0.002,1964.1,1963.9,1.412]
[1772310709824,0.002,1964.3,1964.1,2.48714653]
[1772310710190,0.002,1964.4,1963.9,1.412]
[1772310710191,1e-08,1964.5,1963.9,1.412]
[1772310710401,1e-08,1964.5,1963.9,3.89914653]
[1772310710630,0.826,1965.2,1963.9,3.89914653]
[1772310710631,2.39629531,1965.4,1964.2,2.48714653]
[1772310710798,2.39629531,1965.4,1964.3,1.413]
[1772310711302,2.39629531,1965.2,1964.3,2.68567353]
[1772310711493,1.27207042,1965.3,1964.3,2.68567353]
[1772310711823,2.39629531,1965.2,1964.3,2.68571222]
[1772310713124,5.08777804,1965.5,1964.5,1.27258844]
[1772310713424,7.48407335,1965.5,1964.5,3.75973497]
[1772310714095,2.39629531,1965.3,1964.3,1.413]
[1772310714300,4.21705558,1965.2,1964.3,1.413]
[1772310714624,4.21705558,1965.2,1964.3,2.68571565]
[1772310715195,1.27219988,1965.1,1964.3,2.68571565]
[1772310715396,2.63805125,1965.4,1964.4,2.48714653]
[1772310715824,2.39629531,1965.3,1964.4,2.48714653]
[1772310716423,3.76229531,1965.3,1964.4,2.48714653]
[1772310716730,3.76229531,1965.3,1964.3,1.27271565]
[1772310716731,2.39629531,1965.2,1964.3,1.27271565]
[1772310717109,1.366,1965.3,1963.6,3.7603115]
[1772310717110,2.39629531,1965.0,1963.6,3.7603115]
[1772310717325,3.66881897,1964.6,1963.6,3.7603115]
[1772310718038,5.03481897,1964.6,1963.6,3.7603115]
[1772310719024,3.66881897,1964.6,1963.6,3.7603115]
[1772310719196,1.27271801,1964.3,1963.4,1.2732558]
[1772310719602,1.27271801,1964.3,1963.4,3.76040233]
[1772310719829,2.39629531,1964.3,1963.4,1.2732558]
[1772310720037,1.27269908,1964.4,1963.0,2.48714653]
[1772310720038,2.39629531,1964.2,1963.0,2.48714653]
[1772310720234,1.367,1964.4,1963.2,2.48714653]
[1772310720528,7.63143464,1965.0,1963.5,2.48714653]
[1772310720529,1.27249206,1964.7,1963.5,2.48714653]
[1772310720733,2.63949206,1964.7,1963.5,2.48714653]
[1772310721043,2.39629531,1964.6,1963.5,2.48714653]
[1772310721606,1.27258844,1964.5,1963.6,1.27317172]
[1772310722039,2.63958844,1964.5,1963.6,1.27317172]
[1772310722339,2.63958844,1964.5,1963.6,3.76031825]
[1772310722708,1.27258844,1964.5,1963.6,3.76031825]
[1772310722903,1.27258844,1964.5,1963.3,2.68431556]
[1772310722904,2.39629531,1964.4,1963.3,2.68431556]
[1772310723105,2.39629531,1963.8,1962.8,1.27365114]
[1772310723318,3.76229531,1963.7,1962.8,1.27365114]
[1772310723533,3.76229531,1963.7,1962.4,12.48906042]
[1772310723534,3.66953187,1963.5,1962.4,12.48906042]
[1772310723836,4.93841338,1963.3,1962.4,6.10186816]
[1772310724043,4.93841338,1963.2,1962.4,4.82791968]
[1772310724230,2.39629531,1963.1,1962.4,4.82791968]
[1772310724910,2.39629531,1963.1,1962.4,0.001]
[1772310725331,3.76229531,1963.0,1962.4,0.001]
[1772310725917,1.27362575,1962.9,1962.4,0.001]
[1772310726434,2.39629531,1962.8,1962.4,0.001]
[1772310727544,1.367,1962.7,1962.1,0.001]
[1772310727837,2.39629531,1962.8,1962.1,0.001]
[1772310727838,1.368,1962.6,1962.1,0.001]
[1772310728028,1.27388535,1962.5,1962.1,0.001]
[1772310728539,2.64186664,1962.6,1962.1,0.001]
[1772310728710,7.58028002,1962.6,1961.6,2.68242387]
[1772310729235,2.39629531,1962.5,1961.6,1.27446888]
[1772310729437,5.18398471,1962.6,1961.7,2.48714653]
[1772310729438,1.369,1962.6,1961.7,2.48714653]
[1772310730008,2.39629531,1962.8,1961.8,3.76148642]
[1772310730211,1.368,1962.7,1961.8,3.76148642]
[1772310730624,3.66999652,1962.8,1961.8,3.76148642]
[1772310730826,1.368,1962.9,1961.9,2.48714653]
[1772310731028,1.368,1962.9,1961.9,5.0292646]
[1772310731338,1.27343113,1963.2,1962.0,2.48714653]
[1772310731339,5.03772644,1963.2,1962.0,2.48714653]
[1772310731732,2.39629531,1963.2,1962.2,2.48714653]
[1772310731928,1.368,1963.2,1962.2,2.48714653]
[1772310732133,1.368,1963.2,1962.3,3.76116171]
[1772310732333,1.368,1963.3,1962.4,2.48714653]
[1772310732531,1.368,1963.3,1962.2,1.27405696]
[1772310732532,2.39629531,1963.2,1962.2,1.27405696]
[1772310733544,3.91011807,1963.3,1962.2,1.27405696]
[1772310733545,3.66955331,1963.5,1962.3,2.48714653]
[1772310734345,3.66955331,1963.5,1962.3,3.7611178]
[1772310734346,2.54211807,1963.3,1962.3,3.7611178]
[1772310734542,1.368,1963.2,1962.3,3.7611178]
[1772310735240,2.39629531,1963.3,1962.4,2.48714653]
[1772310735450,1.368,1963.3,1962.4,2.48714653]
[1772310736440,7.63429745,1963.8,1962.6,2.42971755]
[1772310736441,5.03110738,1963.7,1962.6,2.42971755]
[1772310736815,0.002,1963.6,1962.6,2.42971755]
[1772310737036,2.39296441,1963.6,1962.6,2.42971755]
[1772310737349,3.76096441,1963.6,1962.6,2.42971755]
[1772310738339,3.66420097,1963.5,1962.6,3.70349782]
[1772310738537,2.39096441,1963.4,1962.4,1.27490072]
[1772310739044,3.81535463,1963.5,1962.4,1.27490072]
[1772310739045,4.93308248,1963.2,1962.4,1.27494555]
[1772310739245,1.369,1963.1,1962.4,0.001]
[1772310739923,1.369,1963.1,1962.4,1.27494892]
[1772310740122,4.93308248,1963.2,1962.4,1.27494892]
[1772310740328,1.27356087,1963.0,1962.4,0.001]
[1772310742727,1.37,1963.3,1962.4,2.43071755]
[1772310742947,1.27334844,1963.4,1962.5,2.42971755]
[1772310743318,2.39096441,1963.3,1962.4,0.001]
[1772310743517,2.39096441,1963.3,1962.4,2.43071755]
[1772310744119,2.54211807,1963.1,1962.4,2.43071755]
[1772310744320,1.369,1963.0,1962.4,0.001]
[1772310744654,1.27362575,1962.9,1962.4,0.001]
[1772310745344,2.64261139,1963.0,1962.4,0.001]